fUSD/lending_fUSD_20240822
["ID","MTS","AMOUNT","RATE_DAILY","PERIOD"]
[335510380,1724295044318,-719.33,0.00010799,2]
[335510381,1724295044328,-150.0,0.00010799,2]
[335510382,1724295044337,-500.0,0.00010799,2]
[335510383,1724295044347,-500.0,0.00010799,2]
[335510384,1724295044356,-500.0,0.00010799,2]
[335510385,1724295044365,-500.0,0.00010799,2]
[335510386,1724295044375,-500.0,0.00010799,2]
[335510387,1724295044384,-500.0,0.00010799,2]
[335510388,1724295044393,-500.0,0.00010799,2]
[335510389,1724295044403,-500.0,0.00010799,2]
[335510390,1724295044412,-500.0,0.00010799,2]
[335510391,1724295044422,-552.5027667,0.00010799,2]
[335510392,1724295044431,-510.13537245,0.00010799,2]
[335510393,1724295044440,-642.99223851,0.00010799,2]
[335510394,1724295044450,-500.0,0.00010799,2]
[335510395,1724295044459,-500.0,0.00010799,2]
[335510396,1724295044468,-500.0,0.00010799,2]
[335510397,1724295044477,-513.7867155,0.00010799,2]
[335510398,1724295044487,-539.81408163,0.00010799,2]
[335510399,1724295044496,-682.94296853,0.00010799,2]
[335510400,1724295044505,-12325.47431908,0.000108,2]
[335510401,1724295044514,-155.94399844,0.000108,2]
[335510402,1724295044523,-493617.57321828,0.000108,2]
[335510403,1724295044535,-3664.0000002,0.000108,2]
[335510404,1724295044546,-593.30679948,0.000108,2]
[335510405,1724295044557,-15306.6373795,0.000108,2]
[335510406,1724295044569,-6246.50973598,0.000108,2]
[335510407,1724295044579,-275.18000013,0.000108,2]
[335510408,1724295044590,-10370.49375009,0.000108,2]
[335510410,1724295046012,-150.0,0.00010669,2]
[335510411,1724295046022,-150.0,0.0001067,2]
[335510412,1724295046031,-150.0,0.00010671,2]
[335510413,1724295046150,-150.0,0.00010676,2]
[335510414,1724295046161,-150.0,0.00010689,2]
[335510415,1724295046170,-150.0,0.00010704,2]
[335510416,1724295046180,-150.0,0.00010716,2]
[335510417,1724295046189,-150.0,0.00010718,2]
[335510418,1724295046199,-150.0,0.00010722,2]
[335510419,1724295046208,-150.0,0.0001073,2]
[335510420,1724295046217,-150.0,0.00010733,2]
[335510421,1724295046226,-150.0,0.00010734,2]
[335510422,1724295046236,-150.0,0.00010756,2]
[335510423,1724295046245,-150.0,0.00010758,2]
[335510425,1724295046254,-150.0,0.00010764,2]
[335510427,1724295046263,-150.0,0.00010767,2]
[335510429,1724295046272,-150.0,0.00010773,2]
[335510431,1724295046281,-150.0,0.00010773,2]
[335510432,1724295046290,-150.0,0.00010789,2]
[335510433,1724295046300,-150.0,0.00010789,2]
[335510434,1724295046310,-150.0,0.00010798,2]
[335510435,1724295046319,-704.16700004,0.000108,2]
[335510436,1724295046330,-313.06330969,0.000108,2]
[335510437,1724295046341,-20944.7951398,0.000108,2]
[335510438,1724295046382,-150.0,0.00010703,2]
[335510439,1724295046391,-150.0,0.00010754,2]
[335510440,1724295046401,-150.0,0.0001077,2]
[335510441,1724295046410,-1065.10735471,0.000108,2]
[335510442,1724295046423,-5886.8478948,0.000108,2]
[335510443,1724295046434,-412.04527612,0.000108,2]
[335510444,1724295054716,9846.65,9.824e-05,2]
[335510445,1724295101275,9340.74,9.817e-05,2]
[335510446,1724295109795,2315.69,9.814e-05,2]
[335510451,1724295257485,282.61,9.745e-05,2]
[335510454,1724295346091,2580.57,9.721e-05,2]
[335510455,1724295386344,655.63,8.219e-05,2]
[335510456,1724295409009,183.01,9.718e-05,2]
[335510457,1724295480748,250.0,9.71e-05,2]
[335510458,1724295521444,1582.61,9.702e-05,2]
[335510459,1724295571085,840.0,9.701e-05,2]
[335510460,1724295728700,310.90591163,9.899e-05,2]
[335510461,1724295876537,650.62,8.219e-05,2]
[335510462,1724295885056,192.65331629,9.899e-05,2]
[335510463,1724295904546,569.29876839,9.899e-05,2]
[335510464,1724295922483,605.0760455,9.899e-05,2]
[335510465,1724295937547,155.78529246,9.899e-05,2]
[335510466,1724295955085,416.87450068,9.899e-05,2]
[335510467,1724295956933,655.75078287,9.899e-05,2]
[335510469,1724295959414,155.0,9.899e-05,2]
[335510470,1724295965341,188.32,9.677e-05,2]
[335510471,1724295989207,155.0,9.899e-05,2]
[335510473,1724296030190,296.35,9.665e-05,2]
[335510474,1724296031416,360.02795616,9.899e-05,2]
[335510475,1724296059246,328.0,9.665e-05,2]
[335510476,1724296070799,236.56341525,9.899e-05,2]
[335510477,1724296090893,380.13,9.663e-05,2]
[335510478,1724296094065,275.23203234,9.899e-05,2]
[335510482,1724296192418,155.0,9.899e-05,2]
[335510483,1724296208670,3940.78442641,9.899e-05,2]
[335510485,1724296232149,-614.99,9.999e-05,2]
[335510489,1724296232159,-300.0,9.999e-05,2]
[335510491,1724296232169,-300.0,9.999e-05,2]
[335510495,1724296232178,-4985.02,0.0001,2]
[335510497,1724296232188,-1050.0,0.0001,2]
[335510500,1724296232197,-658.38413372,0.0001,2]
[335510503,1724296232207,-330.59802956,0.0001,2]
[335510506,1724296232216,-150.0,0.000101,2]
[335510509,1724296232226,-160.37,0.00010178,2]
[335510512,1724296232235,-650.62,0.00010457,2]
[335510513,1724296232245,-499.99,0.00010461,2]
[335510516,1724296232255,-3039.64450738,0.00010471,2]
[335510519,1724296232264,-195.94329943,0.00010471,2]
[335510520,1724296232274,-1229.95830301,0.00010471,2]
[335510522,1724296232284,-167.6040673,0.00010471,2]
[335510524,1724296232293,-156.14180465,0.00010471,2]
[335510525,1724296232303,-256.96615852,0.00010471,2]
[335510527,1724296232312,-390.09380807,0.00010471,2]
[335510529,1724296232321,-364.29,0.000105,2]
[335510530,1724296232330,-150.0,0.000105,2]
[335510532,1724296232339,-150.0,0.000105,2]
[335510533,1724296232348,-150.0,0.000105,2]
[335510535,1724296232359,-150.0,0.000105,2]
[335510537,1724296232368,-885.9,0.000105,2]
[335510538,1724296232377,-300.58,0.000105,2]
[335510539,1724296232387,-218.36585275,0.00010505,2]
[335510540,1724296232396,-150.0,0.00010557,2]
[335510542,1724296232405,-413.39640966,0.00010558,2]
[335510544,1724296232415,-311.3510429,0.00010558,2]
[335510545,1724296232424,-1051.32949098,0.00010558,2]
[335510547,1724296232433,-6437.03,0.00010558,2]
[335510549,1724296232442,-165.25928024,0.00010566,2]
[335510551,1724296232452,-198.5763028,0.00010566,2]
[335510553,1724296232461,-633.18879537,0.00010566,2]
[335510554,1724296232470,-778.593,0.000106,2]
[335510555,1724296232480,-950.445,0.000106,2]
[335510556,1724296232489,-8180.6491,0.000106,2]
[335510557,1724296232498,-167.9088,0.000106,2]
[335510558,1724296232507,-302.36,0.000106,2]
[335510559,1724296232517,-150.29,0.000106,2]
[335510560,1724296232526,-150.0,0.000106,2]
[335510561,1724296232535,-150.0,0.000106,2]
[335510562,1724296232545,-151.65,0.000106,2]
[335510563,1724296232554,-426.72,0.000106,2]
[335510564,1724296232562,-301.66,0.000106,2]
[335510565,1724296232571,-531.39,0.000106,2]
[335510566,1724296232581,-715.84,0.000106,2]
[335510567,1724296232590,-150.0,0.000106,2]
[335510568,1724296232599,-150.0,0.000106,2]
[335510569,1724296232609,-806.78549834,0.000106,2]
[335510570,1724296232620,-2967.87,0.000106,2]
[335510571,1724296232632,-19312.97270166,0.000106,2]
[335510572,1724296232641,-1005.0,0.000106,2]
[335510573,1724296232651,-150.0,0.00010657,2]
[335510574,1724296232660,-150.0,0.00010668,2]
[335510575,1724296232669,-150.0,0.0001067,2]
[335510576,1724296232678,-150.0,0.00010672,2]
[335510577,1724296232687,-150.0,0.00010674,2]
[335510578,1724296232696,-150.0,0.00010675,2]
[335510579,1724296232706,-150.0,0.00010676,2]
[335510580,1724296232716,-150.0,0.00010678,2]
[335510581,1724296232725,-150.0,0.00010682,2]
[335510582,1724296232734,-20316.663,0.00010682,2]
[335510583,1724296232743,-150.0,0.00010683,2]
[335510584,1724296232752,-150.0,0.00010686,2]
[335510585,1724296232762,-150.0,0.00010686,2]
[335510586,1724296232771,-150.0,0.00010687,2]
[335510587,1724296232780,-150.0,0.00010689,2]
[335510588,1724296232789,-1319.95263,0.0001069,2]
[335510589,1724296232798,-150.0,0.00010694,2]
[335510590,1724296232807,-150.0,0.00010697,2]
[335510591,1724296232817,-82030.1636,0.00010699,2]
[335510592,1724296232828,-500.0,0.00010699,2]
[335510593,1724296232837,-500.0,0.00010699,2]
[335510594,1724296232846,-500.0,0.00010699,2]
[335510595,1724296232856,-500.0,0.00010699,2]
[335510596,1724296232865,-641.21302538,0.00010699,2]
[335510597,1724296232875,-500.0,0.00010699,2]
[335510598,1724296232885,-500.0,0.00010699,2]
[335510599,1724296232894,-107183.14100418,0.000107,2]
[335510600,1724296232906,-480.84628592,0.000107,2]
[335510601,1724296232917,-349.70936002,0.000107,2]
[335510602,1724296232929,-3826.9705267,0.000107,2]
[335510603,1724296232940,-1801.44,0.000107,2]
[335510604,1724296232951,-15122.30506371,0.000107,2]
[335510605,1724296232962,-12552.98142732,0.000107,2]
[335510606,1724296232972,-909.3594811,0.000107,2]
[335510607,1724296232998,-8508.47926252,0.000107,2]
[335510608,1724296237983,-201.19622911,0.00010566,2]
[335510609,1724296237993,-150.0,0.00010645,2]
[335510610,1724296238006,-150.0,0.00010665,2]
[335510611,1724296238015,-150.0,0.00010671,2]
[335510612,1724296238025,-150.0,0.00010681,2]
[335510614,1724296238034,-1709.52377089,0.000107,2]
[335510615,1724296238046,-7902.17031764,0.000107,2]
[335510616,1724296238056,-422.8247,0.000107,2]
[335510619,1724296238068,-150.0,0.000107,2]
[335510620,1724296238078,-150.0,0.00010701,2]
[335510622,1724296238087,-150.0,0.00010702,2]
[335510624,1724296238095,-150.0,0.00010702,2]
[335510625,1724296238105,-150.0,0.00010704,2]
[335510626,1724296238115,-150.0,0.00010708,2]
[335510627,1724296238124,-278.75362519,0.00010713,2]
[335510628,1724296238134,-150.0,0.00010715,2]
[335510629,1724296238145,-150.0,0.0001072,2]
[335510630,1724296238154,-1319.95264,0.0001072,2]
[335510631,1724296238163,-150.0,0.00010721,2]
[335510632,1724296238172,-150.0,0.00010721,2]
[335510633,1724296238181,-150.0,0.00010722,2]
[335510634,1724296238191,-150.0,0.00010723,2]
[335510635,1724296238200,-150.0,0.00010734,2]
[335510636,1724296238209,-150.0,0.00010734,2]
[335510637,1724296238218,-150.0,0.00010741,2]
[335510638,1724296238228,-150.0,0.00010741,2]
[335510639,1724296238237,-150.0,0.00010744,2]
[335510640,1724296238247,-150.0,0.00010745,2]
[335510641,1724296238259,-150.0,0.00010746,2]
[335510642,1724296238269,-150.0,0.00010746,2]
[335510643,1724296238278,-150.0,0.00010748,2]
[335510644,1724296238287,-150.0,0.00010753,2]
[335510645,1724296238296,-150.0,0.00010755,2]
[335510646,1724296238306,-150.0,0.00010759,2]
[335510647,1724296238315,-150.0,0.00010759,2]
[335510648,1724296238324,-1319.95263,0.0001076,2]
[335510649,1724296238333,-150.0,0.00010761,2]
[335510650,1724296238343,-150.0,0.00010762,2]
[335510651,1724296238352,-150.0,0.00010762,2]
[335510652,1724296238361,-150.0,0.00010762,2]
[335510653,1724296238370,-150.0,0.00010764,2]
[335510654,1724296238379,-150.0,0.00010764,2]
[335510655,1724296238392,-150.0,0.00010764,2]
[335510656,1724296238401,-150.0,0.00010765,2]
[335510657,1724296238410,-150.0,0.00010769,2]
[335510658,1724296238419,-200.0,0.00010773,2]
[335510659,1724296238429,-150.0,0.00010774,2]
[335510660,1724296238438,-150.0,0.00010778,2]
[335510661,1724296238447,-150.0,0.00010785,2]
[335510662,1724296238456,-7500.0,0.00010788,2]
[335510663,1724296238465,-150.0,0.00010791,2]
[335510665,1724296238474,-150.0,0.00010792,2]
[335510666,1724296238484,-150.0,0.00010792,2]
[335510668,1724296238493,-150.0,0.00010794,2]
[335510670,1724296238502,-153.25791357,0.00010797,2]
[335510672,1724296238512,-500.0,0.00010799,2]
[335510674,1724296238521,-500.0,0.00010799,2]
[335510675,1724296238530,-500.0,0.00010799,2]
[335510677,1724296238539,-500.0,0.00010799,2]
[335510679,1724296238548,-500.0,0.00010799,2]
[335510681,1724296238558,-500.0,0.00010799,2]
[335510683,1724296238569,-502.11,0.00010799,2]
[335510685,1724296238578,-500.0,0.00010799,2]
[335510687,1724296238587,-500.0,0.00010799,2]
[335510689,1724296238597,-500.0,0.00010799,2]
[335510691,1724296238606,-626.14,0.00010799,2]
[335510693,1724296238615,-500.0,0.00010799,2]
[335510695,1724296238624,-500.0,0.00010799,2]
[335510697,1724296238634,-500.0,0.00010799,2]
[335510699,1724296238643,-500.0,0.00010799,2]
[335510701,1724296238652,-500.0,0.00010799,2]
[335510702,1724296238661,-500.0,0.00010799,2]
[335510703,1724296238670,-500.0,0.00010799,2]
[335510704,1724296238679,-500.0,0.00010799,2]
[335510705,1724296238688,-500.0,0.00010799,2]
[335510706,1724296238697,-500.0,0.00010799,2]
[335510707,1724296238706,-500.0,0.00010799,2]
[335510708,1724296238715,-500.0,0.00010799,2]
[335510709,1724296238724,-639.0,0.00010799,2]
[335510710,1724296238733,-279.67320542,0.00010799,2]
[335510711,1724296238742,-500.0,0.00010799,2]
[335510712,1724296238752,-500.0,0.00010799,2]
[335510713,1724296238761,-500.0,0.00010799,2]
[335510714,1724296238770,-500.0,0.00010799,2]
[335510715,1724296238779,-500.0,0.00010799,2]
[335510716,1724296238788,-500.0,0.00010799,2]
[335510717,1724296238797,-500.0,0.00010799,2]
[335510718,1724296238806,-500.0,0.00010799,2]
[335510719,1724296238815,-500.0,0.00010799,2]
[335510720,1724296238824,-500.0,0.00010799,2]
[335510721,1724296238951,-500.0,0.00010799,2]
[335510722,1724296238961,-500.0,0.00010799,2]
[335510723,1724296238970,-500.0,0.00010799,2]
[335510725,1724296238979,-500.0,0.00010799,2]
[335510726,1724296238988,-500.0,0.00010799,2]
[335510728,1724296238997,-500.0,0.00010799,2]
[335510729,1724296239006,-500.0,0.00010799,2]
[335510731,1724296239016,-500.0,0.00010799,2]
[335510732,1724296239027,-500.0,0.00010799,2]
[335510734,1724296239038,-500.0,0.00010799,2]
[335510736,1724296239048,-500.0,0.00010799,2]
[335510738,1724296239058,-500.0,0.00010799,2]
[335510740,1724296239070,-500.0,0.00010799,2]
[335510741,1724296239079,-500.0,0.00010799,2]
[335510743,1724296239088,-500.0,0.00010799,2]
[335510745,1724296239097,-500.0,0.00010799,2]
[335510747,1724296239108,-500.0,0.00010799,2]
[335510749,1724296239118,-500.0,0.00010799,2]
[335510751,1724296239128,-500.0,0.00010799,2]
[335510753,1724296239138,-500.0,0.00010799,2]
[335510755,1724296239149,-212.02679257,0.00010799,2]
[335510759,1724296239175,-150.0,0.00010666,2]
[335510761,1724296239185,-287.97320743,0.00010799,2]
[335510763,1724296239195,-279.98885311,0.00010799,2]
[335510765,1724296239206,-220.01114689,0.00010799,2]
[335510767,1724296239217,-594.29,0.00010799,2]
[335510769,1724296239226,-286.37011155,0.00010799,2]
[335510771,1724296239237,-213.62988845,0.00010799,2]
[335510773,1724296239247,-500.0,0.00010799,2]
[335510775,1724296239257,-646.28893123,0.00010799,2]
[335510777,1724296239266,-373.5383937,0.00010799,2]
[335510779,1724296239277,-126.4616063,0.00010799,2]
[335510780,1724296239286,-316.66931752,0.00010799,2]
[335510782,1724296239298,-183.33068248,0.00010799,2]
[335510784,1724296239307,-143.11931752,0.00010799,2]
[335510786,1724296239318,-356.88068248,0.00010799,2]
[335510788,1724296239328,-362.56931752,0.00010799,2]
[335510790,1724296239339,-137.43068248,0.00010799,2]
[335510792,1724296239348,-500.0,0.00010799,2]
[335510794,1724296239357,-147.2111459,0.00010799,2]
[335510796,1724296239368,-352.7888541,0.00010799,2]
[335510798,1724296239378,-500.0,0.00010799,2]
[335510800,1724296239387,-500.0,0.00010799,2]
[335510802,1724296239396,-500.0,0.00010799,2]
[335510804,1724296239406,-500.0,0.00010799,2]
[335510806,1724296239416,-500.0,0.00010799,2]
[335510808,1724296239426,-500.0,0.00010799,2]
[335510810,1724296239435,-500.0,0.00010799,2]
[335510812,1724296239444,-546.35237748,0.00010799,2]
[335510814,1724296239453,-500.0,0.00010799,2]
[335510816,1724296239463,-500.0,0.00010799,2]
[335510817,1724296239472,-500.0,0.00010799,2]
[335510819,1724296239481,-500.0,0.00010799,2]
[335510821,1724296239491,-500.0,0.00010799,2]
[335510823,1724296239501,-500.0,0.00010799,2]
[335510825,1724296239510,-500.0,0.00010799,2]
[335510827,1724296239519,-189.86088622,0.00010799,2]
[335510829,1724296239529,-806.95,0.00010799,2]
[335510831,1724296239539,-806.95,0.00010799,2]
[335510833,1724296239549,-806.95,0.00010799,2]
[335510835,1724296239558,-806.95,0.00010799,2]
[335510837,1724296239567,-500.0,0.00010799,2]
[335510839,1724296239576,-245.36599359,0.00010799,2]
[335510841,1724296239588,-254.63400641,0.00010799,2]
[335510843,1724296239597,-396.8659936,0.00010799,2]
[335510846,1724296239608,-103.1340064,0.00010799,2]
[335510848,1724296239617,-184.79830122,0.00010799,2]
[335510850,1724296239628,-315.20169878,0.00010799,2]
[335510852,1724296239637,-351.19830122,0.00010799,2]
[335510854,1724296239649,-148.80169878,0.00010799,2]
[335510856,1724296239658,-500.0,0.00010799,2]
[335510858,1724296239667,-500.0,0.00010799,2]
[335510860,1724296239676,-500.0,0.00010799,2]
[335510862,1724296239686,-500.0,0.00010799,2]
[335510864,1724296239695,-500.0,0.00010799,2]
[335510865,1724296239704,-500.0,0.00010799,2]
[335510867,1724296239712,-500.0,0.00010799,2]
[335510869,1724296239722,-500.0,0.00010799,2]
[335510871,1724296239731,-210.22830122,0.00010799,2]
[335510873,1724296239743,-289.77169878,0.00010799,2]
[335510875,1724296239752,-500.0,0.00010799,2]
[335510877,1724296239761,-500.0,0.00010799,2]
[335510878,1724296239770,-500.0,0.00010799,2]
[335510880,1724296239779,-49.52459598,0.00010799,2]
[335510883,1724296239790,-450.47540402,0.00010799,2]
[335510885,1724296239799,-702.8,0.00010799,2]
[335510886,1724296239808,-702.8,0.00010799,2]
[335510888,1724296239817,-702.8,0.00010799,2]
[335510890,1724296239826,-702.8,0.00010799,2]
[335510892,1724296239835,-864.57,0.00010799,2]
[335510894,1724296239844,-864.57,0.00010799,2]
[335510896,1724296239853,-864.57,0.00010799,2]
[335510898,1724296239862,-168.91459598,0.00010799,2]
[335510899,1724296239873,-420.63165209,0.00010799,2]
[335510901,1724296239884,-275.02375193,0.00010799,2]
[335510903,1724296239894,-415.97624807,0.00010799,2]
[335510905,1724296239905,-301.6851895,0.00010799,2]
[335510907,1724296239916,-242.69856243,0.00010799,2]
[335510909,1724296239925,-57.30244157,0.00010799,2]
[335510913,1724296239945,-150.0,0.00010655,2]
[335510914,1724296239955,-392.99403541,0.00010799,2]
[335510917,1724296239966,-510.06352302,0.00010799,2]
[335510918,1724296239975,-477.98076119,0.00010799,2]
[335510921,1724296239986,-482.37923881,0.00010799,2]
[335510923,1724296239995,-405.12076119,0.00010799,2]
[335510925,1724296240007,-555.23923881,0.00010799,2]
[335510927,1724296240016,-500.0,0.00010799,2]
[335510929,1724296240024,-500.0,0.00010799,2]
[335510930,1724296240033,-500.0,0.00010799,2]
[335510932,1724296240042,-500.0,0.00010799,2]
[335510934,1724296240051,-500.0,0.00010799,2]
[335510936,1724296240063,-500.0,0.00010799,2]
[335510938,1724296240073,-500.0,0.00010799,2]
[335510940,1724296240082,-500.0,0.00010799,2]
[335510942,1724296240092,-500.0,0.00010799,2]
[335510944,1724296240102,-500.0,0.00010799,2]
[335510946,1724296240112,-500.0,0.00010799,2]
[335510948,1724296240121,-623.12,0.00010799,2]
[335510950,1724296240131,-500.0,0.00010799,2]
[335510952,1724296240141,-623.12,0.00010799,2]
[335510954,1724296240150,-623.12,0.00010799,2]
[335510956,1724296240159,-623.12,0.00010799,2]
[335510957,1724296240169,-500.0,0.00010799,2]
[335510959,1724296240178,-500.0,0.00010799,2]
[335510961,1724296240187,-500.0,0.00010799,2]
[335510963,1724296240197,-500.0,0.00010799,2]
[335510965,1724296240206,-500.0,0.00010799,2]
[335510967,1724296240215,-500.0,0.00010799,2]
[335510969,1724296240224,-500.0,0.00010799,2]
[335510971,1724296240234,-500.0,0.00010799,2]
[335510973,1724296240243,-854.98,0.00010799,2]
[335510975,1724296240253,-854.98,0.00010799,2]
[335510977,1724296240262,-854.98,0.00010799,2]
[335510978,1724296240271,-854.98,0.00010799,2]
[335510980,1724296240281,-500.0,0.00010799,2]
[335510982,1724296240290,-500.0,0.00010799,2]
[335510984,1724296240300,-500.0,0.00010799,2]
[335510986,1724296240309,-500.0,0.00010799,2]
[335510988,1724296240319,-600.05,0.00010799,2]
[335510990,1724296240328,-600.05,0.00010799,2]
[335510992,1724296240337,-600.05,0.00010799,2]
[335510994,1724296240346,-600.05,0.00010799,2]
[335510996,1724296240358,-779.69,0.00010799,2]
[335511000,1724296240371,-779.69,0.00010799,2]
[335511003,1724296240380,-779.69,0.00010799,2]
[335511006,1724296240390,-779.69,0.00010799,2]
[335511009,1724296240400,-500.0,0.00010799,2]
[335511012,1724296240409,-500.0,0.00010799,2]
[335511015,1724296240418,-500.0,0.00010799,2]
[335511017,1724296240427,-500.0,0.00010799,2]
[335511019,1724296240437,-500.0,0.00010799,2]
[335511021,1724296240446,-500.0,0.00010799,2]
[335511023,1724296240457,-500.0,0.00010799,2]
[335511025,1724296240466,-500.0,0.00010799,2]
[335511027,1724296240475,-500.0,0.00010799,2]
[335511029,1724296240485,-500.0,0.00010799,2]
[335511031,1724296240494,-500.0,0.00010799,2]
[335511033,1724296240503,-500.0,0.00010799,2]
[335511035,1724296240513,-1802.42,0.00010799,2]
[335511037,1724296240522,-1802.42,0.00010799,2]
[335511038,1724296240531,-1802.42,0.00010799,2]
[335511040,1724296240540,-1802.42,0.00010799,2]
[335511042,1724296240550,-874.34,0.00010799,2]
[335511044,1724296240560,-874.34,0.00010799,2]
[335511046,1724296240570,-874.34,0.00010799,2]
[335511048,1724296240579,-874.34,0.00010799,2]
[335511050,1724296240588,-1167.26,0.00010799,2]
[335511052,1724296240598,-1167.26,0.00010799,2]
[335511054,1724296240607,-1167.26,0.00010799,2]
[335511056,1724296240616,-1167.26,0.00010799,2]
[335511058,1724296240625,-500.0,0.00010799,2]
[335511060,1724296240634,-1327.19,0.00010799,2]
[335511061,1724296240657,-1327.19,0.00010799,2]
[335511063,1724296240666,-1327.19,0.00010799,2]
[335511065,1724296240675,-1327.19,0.00010799,2]
[335511067,1724296240684,-500.0,0.00010799,2]
[335511069,1724296240694,-500.0,0.00010799,2]
[335511070,1724296240703,-500.0,0.00010799,2]
[335511072,1724296240712,-500.0,0.00010799,2]
[335511074,1724296240721,-4034.75,0.00010799,2]
[335511076,1724296240731,-4034.75,0.00010799,2]
[335511078,1724296240740,-4034.75,0.00010799,2]
[335511080,1724296240749,-4034.75,0.00010799,2]
[335511082,1724296240758,-500.0,0.00010799,2]
[335511083,1724296240767,-500.0,0.00010799,2]
[335511085,1724296240776,-500.0,0.00010799,2]
[335511087,1724296240785,-500.0,0.00010799,2]
[335511089,1724296240794,-500.0,0.00010799,2]
[335511091,1724296240803,-500.0,0.00010799,2]
[335511093,1724296240813,-500.0,0.00010799,2]
[335511095,1724296240823,-500.0,0.00010799,2]
[335511097,1724296240832,-500.0,0.00010799,2]
[335511099,1724296240841,-500.0,0.00010799,2]
[335511101,1724296240851,-500.0,0.00010799,2]
[335511103,1724296240860,-500.0,0.00010799,2]
[335511105,1724296240869,-500.0,0.00010799,2]
[335511107,1724296240878,-500.0,0.00010799,2]
[335511109,1724296240887,-500.0,0.00010799,2]
[335511111,1724296240896,-500.0,0.00010799,2]
[335511113,1724296240906,-406.81761617,0.00010799,2]
[335511115,1724296240916,-500.0,0.00010799,2]
[335511117,1724296240926,-500.0,0.00010799,2]
[335511119,1724296240935,-232778.33414118,0.000108,2]
[335511121,1724296240945,-155.94399844,0.000108,2]
[335511123,1724296240954,-12325.47431908,0.000108,2]
[335511125,1724296240964,-426.79,0.000108,2]
[335511127,1724296240973,-200.0,0.000108,2]
[335511129,1724296240982,-1319.95264,0.000108,2]
[335511132,1724296240991,-1319.95264,0.000108,2]
[335511135,1724296241000,-1319.95263,0.000108,2]
[335511137,1724296241009,-200.0,0.000108,2]
[335511139,1724296241019,-150.0,0.00010802,2]
[335511141,1724296241028,-150.0,0.00010806,2]
[335511143,1724296241037,-150.0,0.00010808,2]
[335511145,1724296241046,-150.0,0.0001081,2]
[335511147,1724296241055,-150.0,0.00010815,2]
[335511149,1724296241067,-150.0,0.00010819,2]
[335511151,1724296241077,-150.0,0.00010821,2]
[335511153,1724296241086,-150.0,0.00010823,2]
[335511154,1724296241095,-150.0,0.00010824,2]
[335511156,1724296241105,-126.21107308,0.00010827,2]
[335511158,1724296241115,-162.86951245,0.00010827,2]
[335511160,1724296241125,-300.2156988,0.00010827,2]
[335511163,1724296241135,-150.0,0.00010828,2]
[335511165,1724296241146,-150.0,0.00010829,2]
[335511167,1724296241157,-150.0,0.00010833,2]
[335511169,1724296241167,-150.0,0.00010833,2]
[335511171,1724296241176,-150.0,0.00010833,2]
[335511173,1724296241185,-500.0,0.00010834,2]
[335511175,1724296241195,-500.0,0.00010834,2]
[335511177,1724296241204,-500.0,0.00010834,2]
[335511179,1724296241213,-710.95,0.00010834,2]
[335511181,1724296241222,-710.95,0.00010834,2]
[335511183,1724296241232,-710.95,0.00010834,2]